bitfinex/quotes_SOLUSD_20220102
["timestamp","ask_amount","ask_price","bid_price","bid_amount"]
[1641143352469,6.75,178.33,178.25,9.6964]
[1641143352969,6.75,178.33,178.25,9.9564]
[1641143353169,6.75,178.36,178.25,9.9564]
[1641143353369,6.75,178.36,178.25,10.4564]
[1641143353572,6.75,178.36,178.25,11.88309368]
[1641143354572,7.01,178.36,178.25,11.62309368]
[1641143355069,7.01,178.36,178.28,26.72191107]
[1641143355269,6.75,178.36,178.28,26.72191107]
[1641143355470,6.75,178.36,178.28,27.22191107]
[1641143355870,6.75,178.36,178.28,18.30991107]
[1641143356277,15.163,178.36,178.27,94.0]
[1641143356474,15.923,178.36,178.27,94.0]
[1641143356874,7.01,178.36,178.27,94.0]
[1641143357678,7.01,178.36,178.27,92.95321572]
[1641143357876,7.51,178.36,178.25,1.2829]
[1641143358078,7.51,178.36,178.22,73.9299]
[1641143358481,7.51,178.36,178.23,30.39930381]
[1641143359312,15.9234,178.36,178.23,30.39930381]
[1641143359614,1.59334438,178.34,178.23,30.39930381]
[1641143359811,6.75,178.33,178.23,30.39930381]
[1641143360212,6.75,178.33,178.24,1.42669368]
[1641143361014,6.75,178.33,178.23,30.39930381]
[1641143361420,7.25,178.33,178.23,30.39930381]
[1641143362514,15.665,178.33,178.23,30.39930381]
[1641143363317,15.665,178.33,178.22,75.244]
[1641143363517,15.925,178.33,178.22,75.244]
[1641143363720,20.838,178.33,178.22,75.244]
[1641143364822,15.925,178.33,178.22,75.244]
[1641143365522,15.925,178.33,178.16,8.4168]
[1641143365720,15.925,178.33,178.19,2.4996]
[1641143366820,17.51834438,178.33,178.19,2.4996]
[1641143368021,24.00034438,178.33,178.19,2.4996]
[1641143368425,24.00034438,178.33,178.19,1.2073]
[1641143368924,8.4184,178.26,178.16,79.586]
[1641143369423,8.9184,178.26,178.16,79.586]
[1641143369626,15.6684,178.26,178.16,79.586]
[1641143370424,15.6684,178.26,178.15,94.0]
[1641143370627,21.9024,178.26,178.15,94.0]
[1641143371425,1.59334438,178.25,178.15,94.0]
[1641143371729,8.4217,178.2,178.15,94.0]
[1641143371928,6.75,178.19,178.09,477.8064952]
[1641143372329,7.25,178.19,178.09,477.8064952]
[1641143372527,8.93669368,178.19,178.09,477.8064952]
[1641143372826,8.4238,178.15,178.02,1.76681417]
[1641143373026,6.75,178.14,178.01,74.8703]
[1641143373426,7.25,178.14,178.01,74.8703]
[1641143373826,7.25,178.14,178.02,29.63238549]
[1641143374229,8.4252,178.12,178.02,29.63238549]
[1641143374430,6.75,178.14,178.03,1.42669368]
[1641143374630,1.59334438,178.17,178.03,1.42669368]
[1641143374833,2.09334438,178.17,178.03,1.92669368]
[1641143375239,2.09334438,178.17,178.04,1.42669368]
[1641143375439,10.51604438,178.17,178.04,1.42669368]
[1641143375639,0.5,178.17,178.04,1.42669368]
[1641143375836,6.75,178.18,178.04,1.92669368]
[1641143376038,7.25,178.18,178.04,1.92669368]
[1641143376236,7.25,178.18,178.06,18.44738268]
[1641143377363,7.25,178.18,178.05,8.4216]
[1641143377965,7.51,178.18,178.03,77.2864]
[1641143378169,1.42669368,178.17,178.03,77.2864]
[1641143378364,6.75,178.16,178.01,74.8703]
[1641143378864,7.25,178.16,178.01,74.8703]
[1641143379264,8.4244,178.13,178.01,74.8703]
[1641143379467,15.6744,178.13,178.01,74.8703]
[1641143380568,21.0844,178.13,178.01,74.8703]
[1641143381269,15.6744,178.13,178.01,74.8703]
[1641143381668,15.9344,178.13,178.01,74.8703]
[1641143382867,15.9344,178.13,178.0,103.50902137]
[1641143383268,15.9344,178.13,178.0,76.715]
[1641143383469,17.36109368,178.13,177.98,82.8343]
[1641143383671,17.36109368,178.13,177.98,74.9093]
[1641143384274,17.36109368,178.13,177.99,27.51074646]
[1641143384674,15.9344,178.13,177.99,27.51074646]
[1641143384870,15.1744,178.13,177.99,28.01074646]
[1641143385074,15.6744,178.13,177.99,29.43744014]
[1641143385471,15.6744,178.13,177.99,28.01074646]
[1641143385671,15.6744,178.13,177.99,27.51074646]
[1641143386271,15.9344,178.13,177.99,27.51074646]
[1641143386472,17.36109368,178.13,177.98,74.4093]
[1641143386671,22.18009368,178.13,177.98,74.9093]
[1641143387077,20.7534,178.13,177.98,74.9093]
[1641143387676,22.18009368,178.13,178.0,94.0]
[1641143389278,84.32,178.12,178.0,94.0]
[1641143389575,8.4307,178.06,177.93,169.001532]
[1641143389775,6.75,178.05,177.93,169.001532]
[1641143389975,8.17669368,178.05,177.93,1.301532]
[1641143390181,11.60163806,178.05,177.93,1.301532]
[1641143390375,1.42669368,178.04,177.93,1.301532]
[1641143390578,6.75,178.03,177.93,0.301532]
[1641143390778,68.0,178.02,177.82,76.748232]
[1641143390982,8.4326,177.97,177.82,76.748232]
[1641143391179,6.75,177.96,177.82,76.748232]
[1641143391377,7.25,177.96,177.82,76.748232]
[1641143391579,7.25,177.96,177.83,31.75515087]
[1641143392181,6.75,177.96,177.84,1.42669368]
[1641143392380,6.75,177.99,177.84,1.42669368]
[1641143392782,7.25,177.99,177.84,1.42669368]
[1641143393180,7.25,177.99,177.84,1.7369]
[1641143393380,6.75,177.99,177.84,1.7369]
[1641143393980,7.01,177.99,177.84,3.16359368]
[1641143394279,7.01,177.99,177.84,11.59449368]
[1641143394480,8.43669368,177.99,177.84,1.2369]
[1641143394680,8.43669368,177.99,177.83,31.75515087]
[1641143394883,8.93669368,177.99,177.83,31.75515087]
[1641143395582,8.4338,177.95,177.83,31.75515087]
[1641143395783,15.1838,177.95,177.83,31.75515087]
[1641143395987,15.6838,177.95,177.83,31.75515087]
[1641143397391,7.25,177.95,177.83,31.75515087]
[1641143397786,7.51,177.95,177.83,33.18184455]
[1641143397988,7.51,177.95,177.83,31.75515087]
[1641143399790,6.75,177.95,177.83,32.25515087]
[1641143399988,6.75,177.98,177.84,1.42669368]
[1641143400188,6.75,178.01,177.84,1.42669368]
[1641143400387,7.25,178.01,177.85,1.2427]
[1641143400594,7.25,178.01,177.85,1.5027]
[1641143400892,7.25,178.01,177.85,3.42939368]
[1641143401289,7.25,178.01,177.89,16.3246173]
[1641143402090,0.5,178.01,177.89,16.3246173]
[1641143402292,1.59334438,178.06,177.89,24.87631098]
[1641143402490,16.77124438,178.07,177.9,158.3112]
[1641143402691,1.59334438,178.07,177.9,165.0612]
[1641143402890,1.59334438,178.07,177.91,1.42669368]
[1641143403191,6.75,178.09,177.91,8.43669368]
[1641143403390,0.5,178.09,177.91,8.93669368]
[1641143403624,1.59334438,178.1,177.96,25.41345134]
[1641143403789,1.59334438,178.1,177.96,31.14945134]
[1641143404088,1.59334438,178.11,177.96,33.33614502]
[1641143404490,1.59334438,178.11,178.01,22.66631683]
[1641143404893,1.59334438,178.11,178.01,23.16631683]
[1641143405089,1.59334438,178.11,178.01,23.42631683]
[1641143405290,1.59334438,178.11,178.02,1.42669368]
[1641143405490,1.59334438,178.11,178.02,2.18669368]
[1641143405694,1.59334438,178.15,178.05,8.4209]
[1641143405991,1.59334438,178.15,178.06,25.41345134]
[1641143406191,1.59334438,178.15,178.06,26.84014502]
[1641143406401,1.59334438,178.15,178.06,27.60014502]
[1641143406591,1.59334438,178.18,178.07,1.42669368]
[1641143406991,1.59334438,178.18,178.07,2.18669368]
[1641143407295,1.59334438,178.18,178.12,22.66631683]
[1641143407494,1.59334438,178.18,178.12,23.42631683]
[1641143407692,1.59334438,178.2,178.13,8.17669368]
[1641143407892,1.59334438,178.2,178.13,81.40519368]
[1641143408091,4.438e-05,178.2,178.14,1.42669368]
[1641143408294,4.438e-05,178.2,178.16,8.4158]
[1641143408493,4.438e-05,178.2,178.13,79.4785]
[1641143408701,9.91916436,178.3,178.13,6.75]
[1641143408895,10.41916436,178.3,178.13,6.75]
[1641143409296,10.41916436,178.3,178.13,7.25]
[1641143409491,3.16916436,178.27,178.14,25.94266258]
[1641143409893,3.66916436,178.27,178.14,34.85946258]
[1641143410095,0.5,178.27,178.14,35.11946258]
[1641143410396,3.66916436,178.28,178.14,35.11946258]
[1641143410596,3.16916436,178.28,178.14,35.11946258]
[1641143410800,3.16916436,178.3,178.14,35.11946258]
[1641143411398,3.16916436,178.3,178.14,41.86946258]
[1641143411597,1.42669368,178.29,178.14,41.60946258]
[1641143411798,1.42669368,178.29,178.14,33.19266258]
[1641143411998,8.17669368,178.29,178.14,26.44266258]
[1641143412299,9.5508124,178.28,178.14,26.44266258]
[1641143412502,10.0508124,178.28,178.14,25.94266258]
[1641143412703,11.73750608,178.28,178.14,25.94266258]
[1641143413307,6.75,178.27,178.14,25.94266258]
[1641143413504,6.75,178.27,178.1,1.3291]
[1641143413808,8.67669368,178.27,178.1,1.3291]
[1641143414003,6.38224628,178.26,178.1,1.3291]
[1641143414203,6.75,178.25,178.1,1.3291]
[1641143414403,7.25,178.25,178.11,30.04506572]
[1641143414807,3.16916436,178.24,178.11,30.04506572]
[1641143415004,4.77684231,178.32,178.26,0.5]
[1641143415005,2.17899965,178.28,178.26,0.5]
[1641143415206,8.5605,178.4,178.37,26.61310022]
[1641143415505,8.5605,178.4,178.27,68.0]
[1641143415506,12.76347339,178.33,178.27,68.0]
[1641143415707,7.98736634,178.42,178.33,12.26347339]
[1641143415907,7.98736634,178.42,178.33,19.39947339]
[1641143416313,4.62057634,178.4,178.35,68.0]
[1641143416509,12.75735439,178.47,178.37,68.0]
[1641143416710,12.75735439,178.47,178.37,75.478]
[1641143416911,12.75735439,178.47,178.37,77.66469368]
[1641143417109,12.75735439,178.47,178.38,6.75]
[1641143417512,12.75735439,178.47,178.38,7.25]
[1641143417714,21.7247639,178.47,178.34,6.75]
[1641143417915,0.5,178.47,178.34,6.75]
[1641143418117,7.25,178.52,178.34,7.25]
[1641143418930,29.87807414,178.52,178.34,7.25]
[1641143419334,22.24815676,178.48,178.34,15.6576]
[1641143419632,22.24815676,178.48,178.34,6.75]
[1641143419831,22.74815676,178.48,178.34,6.75]
[1641143420233,22.74815676,178.48,178.33,12.26347339]
[1641143420632,22.74815676,178.48,178.34,6.75]
[1641143421236,31.15645676,178.48,178.34,6.75]
[1641143421434,31.15645676,178.48,178.34,7.25]
[1641143422433,31.15645676,178.48,178.34,0.5]
[1641143422834,31.15645676,178.48,178.33,12.76347339]
[1641143423036,31.41645676,178.48,178.33,12.76347339]
[1641143423233,12.75240587,178.47,178.33,12.76347339]
[1641143423436,21.66140587,178.47,178.33,12.76347339]
[1641143425440,21.66140587,178.47,178.33,21.17177339]
[1641143425641,13.25240587,178.47,178.33,21.43177339]
[1641143425843,13.25240587,178.47,178.33,21.17177339]
[1641143426440,0.5,178.47,178.33,21.17177339]
[1641143426640,0.76,178.47,178.33,21.17177339]
[1641143426842,22.74815676,178.48,178.33,21.17177339]
[1641143427042,23.00815676,178.48,178.33,21.17177339]
[1641143427244,8.4087,178.47,178.33,21.17177339]
[1641143427444,8.9087,178.47,178.33,21.17177339]
[1641143428446,8.9087,178.47,178.33,21.43177339]
[1641143428646,8.9087,178.47,178.33,21.17177339]
[1641143429450,8.9087,178.47,178.33,12.26347339]
[1641143429650,15.6587,178.47,178.33,12.26347339]
[1641143430377,15.9187,178.47,178.33,12.26347339]
[1641143430580,28.67303575,178.47,178.33,12.26347339]
[1641143430778,28.17303575,178.47,178.33,12.26347339]
[1641143431180,28.67303575,178.47,178.33,12.26347339]
[1641143432378,30.09972943,178.47,178.33,12.26347339]
[1641143433778,12.75433575,178.46,178.33,12.26347339]
[1641143433982,8.4132,178.4,178.33,12.26347339]
[1641143434179,29.37807414,178.39,178.33,12.26347339]
[1641143434379,29.87807414,178.39,178.33,12.26347339]
[1641143434979,8.4126,178.38,178.33,12.26347339]
[1641143435880,6.75,178.39,178.33,12.26347339]
[1641143436380,7.01,178.39,178.33,12.26347339]
[1641143437983,15.4221,178.39,178.33,12.26347339]
[1641143438382,15.9221,178.39,178.33,12.26347339]
[1641143443988,28.68022151,178.39,178.33,12.26347339]
[1641143444590,68.0,178.38,178.22,74.6546]
[1641143444791,8.4146,178.33,178.22,74.6546]
[1641143446100,8.4146,178.33,178.22,83.0688]
[1641143448599,8.6746,178.33,178.22,83.0688]
[1641143450400,8.6746,178.33,178.22,83.5688]
[1641143451003,8.6746,178.33,178.22,83.0688]
[1641143451401,8.6746,178.33,178.22,74.6546]
[1641143451803,9.1746,178.33,178.22,74.6546]
[1641143455006,8.4146,178.33,178.22,74.6546]
[1641143455207,8.4146,178.33,178.22,83.5692]
[1641143455804,8.4146,178.33,178.22,8.9146]
[1641143456004,8.4146,178.33,178.2,300.0]
[1641143456404,8.9146,178.33,178.2,300.0]
[1641143457706,8.9146,178.33,178.2,300.5]
[1641143457905,8.4146,178.33,178.2,300.5]
[1641143458108,8.9146,178.33,178.2,300.5]
[1641143458507,8.4146,178.33,178.2,300.5]
[1641143458907,9.1746,178.33,178.2,300.5]
[1641143459306,9.1746,178.33,178.2,308.9155]
[1641143461608,8.4146,178.33,178.21,6.75]
[1641143461810,6.75,178.42,178.28,8.4119]
[1641143462015,6.75,178.42,178.24,6.75]
[1641143462212,6.75,178.42,178.25,6.75]
[1641143462411,6.75,178.42,178.25,7.25]
[1641143462616,6.75,178.42,178.25,7.51]
[1641143462913,7.25,178.42,178.25,8.93669368]
[1641143463111,8.4117,178.36,178.29,8.4117]
[1641143463311,0.5,178.42,178.25,7.25]
[1641143463741,12.75587444,178.42,178.25,7.25]
[1641143463941,13.25587444,178.42,178.25,7.51]
[1641143464142,13.25587444,178.42,178.25,7.25]
[1641143464342,8.4123,178.35,178.28,8.4122]
[1641143465148,8.6723,178.35,178.25,7.25]
[1641143466244,8.6723,178.35,178.27,8.4124]
[1641143466645,8.4115,178.36,178.27,8.4124]
[1641143466844,8.4115,178.36,178.27,9.1724]
[1641143467045,8.4115,178.36,178.27,8.9124]
[1641143467247,8.4115,178.36,178.27,8.4124]
[1641143468048,8.6715,178.36,178.27,8.4124]
[1641143469348,9.1715,178.36,178.25,15.1634]
[1641143469548,9.1715,178.36,178.25,15.6634]
[1641143470951,9.1715,178.36,178.24,8.4141]
[1641143471150,6.75,178.35,178.23,1.2482]
[1641143471351,8.416,178.29,178.22,151.4078]
[1641143471556,8.416,178.29,178.17,2.4719]
[1641143471749,8.916,178.29,178.17,2.4719]
[1641143472150,8.916,178.29,178.17,10.8887]
[1641143472351,8.916,178.29,178.2,300.5]
[1641143473350,8.916,178.29,178.2,308.4157]
[1641143473551,8.416,178.29,178.2,308.4157]
[1641143474152,8.416,178.29,178.2,308.9157]
[1641143474852,8.416,178.29,178.2,308.4157]
[1641143475052,8.676,178.29,178.2,308.4157]
[1641143475453,8.676,178.29,178.2,308.9157]
[1641143476654,8.416,178.29,178.2,308.9157]
[1641143478657,8.676,178.29,178.2,308.9157]
[1641143478957,8.676,178.29,178.2,308.4157]
[1641143479356,8.676,178.29,178.2,308.9157]
[1641143479758,8.676,178.29,178.2,308.4157]
[1641143480360,8.676,178.29,178.2,308.9157]
[1641143480957,8.416,178.29,178.2,309.1757]
[1641143481157,11.3761089,178.36,178.2,309.1757]
[1641143481358,11.8761089,178.36,178.2,309.1757]
[1641143481557,11.8761089,178.36,178.2,308.9157]
[1641143481758,11.8761089,178.36,178.2,308.4157]
[1641143481958,30.48132225,178.36,178.2,308.9157]
[1641143482382,30.74132225,178.36,178.2,308.9157]
[1641143483261,8.4154,178.28,178.2,308.9157]
[1641143483461,28.05,178.33,178.2,308.9157]
[1641143483861,28.55,178.33,178.2,308.9157]
[1641143484362,8.4144,178.3,178.2,308.9157]
[1641143484561,8.4144,178.3,178.2,309.1757]
[1641143484761,58.02802225,178.36,178.2,309.1757]
[1641143484963,58.78802225,178.36,178.2,309.1757]
[1641143485565,8.4139,178.32,178.25,8.4136]
[1641143487678,4.6261089,178.38,178.25,8.9136]
[1641143487877,5.1261089,178.38,178.25,15.9236]
[1641143488681,8.412,178.36,178.25,15.9236]
[1641143488877,8.912,178.36,178.25,15.9236]
[1641143489475,9.172,178.36,178.25,15.9236]
[1641143494199,8.912,178.36,178.25,15.9236]
[1641143495399,0.5,178.36,178.25,15.9236]
[1641143495603,8.4112,178.37,178.25,15.9236]
[1641143495801,32.6640089,178.41,178.25,15.9236]
[1641143496005,33.1640089,178.41,178.26,79.4103]
[1641143496304,33.1640089,178.41,178.31,8.4107]
[1641143496503,33.1640089,178.41,178.31,8.9107]
[1641143496703,28.5379,178.41,178.31,8.9107]
[1641143496905,28.0379,178.41,178.31,8.9107]
[1641143497307,8.4108,178.38,178.31,8.9107]
[1641143498006,8.6708,178.38,178.31,8.4107]
[1641143498205,8.6708,178.38,178.29,8.4119]
[1641143498606,8.6708,178.38,178.29,8.9119]
[1641143502211,8.4108,178.38,178.29,8.9119]
[1641143502612,8.4108,178.38,178.29,9.1719]
[1641143502813,8.4108,178.38,178.29,8.9119]
[1641143504516,8.9108,178.38,178.29,8.9119]
[1641143505021,12.09941215,178.38,178.29,8.4119]
[1641143505219,12.09941215,178.38,178.29,8.9119]
[1641143505621,6.37739451,178.37,178.29,8.9119]
[1641143505820,14.78879451,178.37,178.29,8.9119]
[1641143506021,15.28879451,178.37,178.29,8.9119]
[1641143506721,8.9114,178.37,178.29,8.9119]
[1641143507423,9.1714,178.37,178.29,8.9119]
[1641143508024,40.5410348,178.37,178.29,8.9119]
[1641143508423,8.4114,178.37,178.29,8.9119]
[1641143508646,3.18861215,178.38,178.29,8.9119]
[1641143509450,33.7968442,178.39,178.29,8.4119]
[1641143509651,8.4113,178.37,178.29,8.9119]
[1641143514856,3.18861215,178.38,178.29,9.1719]
[1641143515056,3.18861215,178.38,178.3,6.75]
[1641143515257,3.18861215,178.4,178.35,8.4088]
[1641143515457,3.18861215,178.4,178.35,8.9088]
[1641143516356,7.81472105,178.42,178.35,8.9088]
[1641143516557,3.18861215,178.42,178.35,8.9088]
[1641143517359,0.5,178.35,178.3,7.9943]
[1641143517557,0.5,178.35,178.3,1.2443]
[1641143517758,0.5,178.35,178.24,1.2826]
[1641143518358,0.5,178.35,178.26,1.2301]
[1641143518559,0.5,178.35,178.24,1.2826]
[1641143519163,0.5,178.35,178.24,1.7826]
[1641143519360,8.9126,178.35,178.26,8.4126]
[1641143520161,8.9126,178.35,178.26,0.5]
[1641143520862,8.9126,178.35,178.24,1.7826]
[1641143520863,9.1726,178.35,178.24,1.7826]
[1641143521064,9.1726,178.35,178.24,1.2826]
[1641143521263,9.1726,178.35,178.25,8.4126]
[1641143521666,9.1726,178.35,178.25,8.9126]
[1641143522269,9.6726,178.35,178.23,160.9537]
[1641143522468,22.1826,178.35,178.2,300.0]
[1641143523266,25.37121215,178.35,178.2,300.0]
[1641143523467,26.79790583,178.35,178.2,300.0]
[1641143524370,6.37872743,178.34,178.2,300.0]
[1641143524567,8.4156,178.28,178.2,300.0]
[1641143526268,7.9156,178.28,178.2,300.0]
[1641143526672,8.4149,178.3,178.2,300.5]
[1641143527470,9.93861215,178.33,178.2,300.76]
[1641143527970,6.75,178.33,178.2,300.76]
[1641143528170,8.4142,178.31,178.2,308.9147]
[1641143528371,32.333505,178.31,178.2,308.9147]
[1641143528572,33.92812311,178.31,178.2,308.9147]
[1641143529374,1.59461811,178.3,178.2,300.5]
[1641143529575,8.4158,178.28,178.2,300.0]
[1641143529776,8.4158,178.28,178.2,300.5]
[1641143530579,8.4158,178.28,178.2,300.0]
[1641143530778,25.21421858,178.27,178.2,300.0]
[1641143530979,25.71421858,178.27,178.2,300.0]
[1641143531187,8.4182,178.24,178.2,300.0]
[1641143531376,13.7502,178.24,178.2,300.0]
[1641143531978,14.84481811,178.24,178.2,300.0]
[1641143532483,15.10481811,178.24,178.2,300.0]
[1641143532678,15.60481811,178.24,178.2,300.0]
[1641143533078,14.0102,178.24,178.2,300.0]
[1641143533281,9.1782,178.24,178.2,300.0]
[1641143533481,8.6782,178.24,178.2,300.0]
[1641143534083,1.59461811,178.23,178.2,300.0]
[1641143534282,2.63104896,178.22,178.2,300.0]
[1641143534480,5.66324893,178.22,178.2,300.0]
[1641143535508,1.59461811,178.25,178.21,35.40115101]
[1641143535708,10.01221811,178.25,178.21,35.40115101]
[1641143536108,10.01221811,178.25,178.2,300.0]
[1641143536303,8.4176,178.25,178.2,300.0]
[1641143536704,1.59461811,178.26,178.2,300.0]
[1641143536906,2.09461811,178.26,178.2,300.0]
[1641143537106,1.59461811,178.27,178.2,300.0]
[1641143537805,8.4162,178.28,178.2,300.0]
[1641143538707,15.1662,178.28,178.2,300.0]
[1641143538905,15.9262,178.28,178.2,300.0]
[1641143539106,28.99272671,178.27,178.2,300.0]
[1641143539307,8.418,178.24,178.2,300.0]
[1641143540116,1.59461811,178.25,178.2,300.0]
[1641143540911,1.59461811,178.27,178.2,300.0]
[1641143541112,28.17536322,178.26,178.2,300.0]
[1641143541316,34.92536322,178.26,178.2,300.0]
[1641143541513,1.59461811,178.24,178.2,300.0]
[1641143541915,10.01321811,178.24,178.2,300.0]
[1641143542117,1.59461811,178.24,178.2,300.0]
[1641143543316,1.59461811,178.26,178.2,300.0]
[1641143544018,1.59461811,178.28,178.2,300.0]
[1641143546020,1.85461811,178.28,178.2,300.0]
[1641143548121,1.59461811,178.26,178.2,300.0]
[1641143549826,10.27161811,178.26,178.2,300.0]
[1641143551324,1.59461811,178.25,178.2,300.0]
[1641143552732,10.01201811,178.25,178.2,300.0]
[1641143553925,9.51201811,178.25,178.2,300.0]
[1641143555426,10.01201811,178.25,178.2,300.0]
[1641143555628,8.9174,178.25,178.2,300.0]
[1641143556528,9.1774,178.25,178.2,300.0]
[1641143560634,8.6774,178.25,178.2,300.0]
[1641143560839,9.1774,178.25,178.2,300.0]
[1641143561660,8.6774,178.25,178.2,300.0]
[1641143565369,9.1774,178.25,178.2,300.0]
[1641143572982,15.9274,178.25,178.2,300.0]
[1641143573983,17.35409368,178.25,178.2,300.0]
[1641143575687,15.9274,178.25,178.2,300.0]
[1641143577390,17.35409368,178.25,178.2,300.0]
[1641143580094,17.35409368,178.25,178.09,83.0342]
[1641143580095,45.0,178.23,178.09,74.6133]
[1641143580296,45.0,178.23,178.06,79.0279]
[1641143580297,6.75,178.22,178.06,79.0279]
[1641143580496,8.4243,178.14,178.06,156.5388]
[1641143580692,13.5403,178.14,178.06,250.5388]
[1641143580891,14.0403,178.14,178.06,250.5388]
[1641143581092,14.0403,178.14,178.06,156.5388]
[1641143581992,8.9243,178.14,178.06,156.5388]
[1641143583294,15.6743,178.14,178.06,156.5388]
[1641143583995,15.9343,178.14,178.06,156.5388]
[1641143584395,15.9343,178.14,178.02,1.2493]
[1641143585901,15.9343,178.14,178.02,9.6736]
[1641143586503,15.9343,178.14,178.02,1.2493]
[1641143588524,15.4343,178.14,178.02,1.2493]
[1641143589526,15.4343,178.14,178.02,10.9196]
[1641143589527,15.1743,178.14,178.02,10.9196]
[1641143589728,15.1743,178.14,178.02,1.9955]
[1641143589927,15.6743,178.14,178.02,1.9955]
[1641143591130,1.42669368,178.13,178.02,1.9955]
[1641143591329,8.4256,178.08,178.02,1.9955]
[1641143591528,8.4256,178.08,177.98,148.3159]
[1641143591727,8.9256,178.08,177.98,148.8159]
[1641143592329,8.9256,178.08,177.99,8.4255]
[1641143592730,8.9256,178.08,177.99,9.1855]
[1641143593134,9.1856,178.08,177.99,9.1855]
[1641143593531,9.1856,178.08,177.99,8.9255]
[1641143593732,9.1856,178.08,177.98,148.3159]
[1641143593733,15.9356,178.08,177.98,148.3159]
[1641143595934,1.42669368,178.07,177.98,148.3159]
[1641143596133,8.4287,178.03,177.94,1.2244]
[1641143596335,8.4287,178.03,177.96,0.5]
[1641143596535,6.75,178.02,177.96,0.5]
[1641143596935,6.75,178.02,177.94,73.6666]
[1641143596936,6.75,178.02,177.94,74.1666]
[1641143597338,7.25,178.02,177.94,74.1666]
[1641143597742,6.75,178.02,177.94,74.1666]
[1641143597941,8.4286,178.0,177.94,74.1666]
[1641143598141,8.4286,178.0,177.94,0.5]
[1641143598341,8.4286,178.0,177.92,8.9286]
[1641143598640,8.4286,178.0,177.91,1.2266]
[1641143598838,15.1786,178.0,177.91,1.2266]
[1641143599240,15.6786,178.0,177.91,1.2266]
[1641143603043,15.6786,178.0,177.9,79.9562]
[1641143604045,15.9386,178.0,177.9,79.9562]
[1641143604242,15.9386,178.0,177.89,77.7474]
[1641143604943,15.9386,178.0,177.88,1.2829]
[1641143605843,17.2297,178.0,177.88,1.2829]
[1641143606347,1.42669368,177.99,177.86,1.335]
[1641143606552,8.4333,177.93,177.86,1.835]
[1641143606745,8.4333,177.93,177.86,0.5]
[1641143607146,8.4333,177.93,177.84,1.7838]
[1641143607353,8.9333,177.93,177.84,1.2838]
[1641143607845,8.4333,177.93,177.84,1.2838]
[1641143608045,15.1815,177.94,177.84,1.2838]
[1641143609144,15.1815,177.94,177.84,10.2163]
[1641143609345,6.75,177.94,177.84,10.2163]
[1641143610147,6.75,177.94,177.84,10.4763]
[1641143610547,15.182,177.94,177.84,9.7163]
[1641143610949,15.442,177.94,177.84,9.7163]
[1641143611956,15.442,177.94,177.84,1.2838]
[1641143612349,15.942,177.94,177.84,1.2838]
[1641143612550,15.942,177.94,177.83,149.6049]
[1641143615553,15.942,177.94,177.8,1.2736]
[1641143615955,9.192,177.94,177.8,1.2736]
[1641143616757,9.192,177.94,177.78,83.9844]
[1641143617056,8.4363,177.86,177.79,0.5]
[1641143617354,8.4363,177.86,177.78,76.0488]
[1641143617956,8.1,177.85,177.78,76.0488]
[1641143618159,8.1,177.85,177.78,0.5]
[1641143618355,8.4371,177.83,177.76,0.5]
[1641143618757,8.4371,177.83,177.74,85.255]
[1641143619559,17.0371,177.83,177.73,94.0]
[1641143620159,17.0371,177.83,177.72,0.28123271]
[1641143620364,17.2971,177.83,177.72,0.28123271]
[1641143621387,5.059,177.97,177.72,0.28123271]
[1641143621587,101.23,177.85,177.75,25.56796527]
[1641143621890,8.1,177.84,177.74,68.0]
[1641143622288,8.4402,177.8,177.72,0.28123271]